fUST/lending_fUST_20250701
["ID","MTS","AMOUNT","RATE_DAILY","PERIOD"]
[368703602,1751312974699,-460.0,0.00019074,2]
[368703603,1751312974720,-460.0,0.00019074,2]
[368703604,1751312974740,-460.0,0.00019074,2]
[368703605,1751312974760,-460.0,0.00019074,2]
[368703606,1751312974781,-460.0,0.00019074,2]
[368703607,1751312974801,-460.0,0.00019074,2]
[368703608,1751312974821,-460.0,0.00019074,2]
[368703609,1751312974841,-460.0,0.00019074,2]
[368703610,1751312974862,-460.0,0.00019074,2]
[368703611,1751312974884,-460.0,0.00019074,2]
[368703612,1751312974906,-460.0,0.00019074,2]
[368703613,1751312974928,-460.0,0.00019074,2]
[368703614,1751312974951,-460.0,0.00019074,2]
[368703615,1751312974972,-460.0,0.00019074,2]
[368703616,1751312974994,-506.41,0.00019074,2]
[368703617,1751312975017,-460.0,0.00019074,2]
[368703618,1751312975039,-460.0,0.00019074,2]
[368703619,1751312975062,-460.0,0.00019074,2]
[368703620,1751312975084,-460.0,0.00019074,2]
[368703621,1751312975107,-460.0,0.00019074,2]
[368703622,1751312975129,-460.0,0.00019074,2]
[368703623,1751312975150,-460.0,0.00019074,2]
[368703624,1751312975172,-460.0,0.00019074,2]
[368703625,1751312975193,-514.3,0.00019074,2]
[368703626,1751312975215,-460.0,0.00019074,2]
[368703627,1751312975237,-460.0,0.00019074,2]
[368703628,1751312975259,-577.62,0.00019074,2]
[368703629,1751312975418,-460.0,0.00019074,2]
[368703630,1751312975447,-222.49228179,0.00019074,2]
[368703631,1751312975468,-460.0,0.00019074,2]
[368703632,1751312975489,-575.65,0.00019074,2]
[368703633,1751312975510,-460.0,0.00019074,2]
[368703634,1751312975532,-460.0,0.00019074,2]
[368703635,1751312975554,-602.93076729,0.00019074,2]
[368703636,1751312975576,-460.0,0.00019074,2]
[368703637,1751312975598,-460.0,0.00019074,2]
[368703638,1751312975634,-467.18,0.00019074,2]
[368703639,1751312975657,-460.0,0.00019074,2]
[368703640,1751312975679,-460.0,0.00019074,2]
[368703641,1751312975701,-460.0,0.00019074,2]
[368703642,1751312975724,-460.0,0.00019074,2]
[368703643,1751312975746,-491.42156296,0.00019074,2]
[368703644,1751312975768,-460.0,0.00019074,2]
[368703645,1751312975791,-389.96325663,0.00019074,2]
[368703646,1751312975814,-460.0,0.00019074,2]
[368703647,1751312975836,-460.0,0.00019074,2]
[368703648,1751312975859,-491.85422467,0.00019075,2]
[368703649,1751312975882,-460.0,0.00019075,2]
[368703650,1751312975906,-460.0,0.00019075,2]
[368703651,1751312975928,-500.0,0.00019075,2]
[368703652,1751312975950,-460.0,0.00019075,2]
[368703653,1751312975971,-460.0,0.00019075,2]
[368703654,1751312975993,-162.17,0.00019075,2]
[368703655,1751312976015,-561.74169969,0.00019075,2]
[368703656,1751312976037,-460.0,0.00019075,2]
[368703657,1751312976059,-460.0,0.00019075,2]
[368703658,1751312976080,-500.0,0.00019075,2]
[368703659,1751312976101,-500.0,0.00019099,2]
[368703660,1751312976122,-500.51008903,0.00019127,2]
[368703661,1751312976145,-155.32,0.00019301,2]
[368703662,1751312976167,-285.92,0.00019338,3]
[368703663,1751312976190,-857.76,0.00019338,3]
[368703664,1751312976211,-460.0,0.00019344,2]
[368703665,1751312976235,-460.0,0.00019345,2]
[368703666,1751312976260,-460.0,0.00019345,2]
[368703667,1751312976289,-460.0,0.00019345,2]
[368703668,1751312976312,-460.0,0.00019345,2]
[368703669,1751312976336,-460.0,0.00019345,2]
[368703670,1751312976362,-460.0,0.00019345,2]
[368703671,1751312976386,-460.0,0.00019345,2]
[368703672,1751312976410,-460.0,0.00019346,2]
[368703673,1751312976434,-455.01,0.00019346,2]
[368703674,1751312976456,-460.0,0.00019346,2]
[368703675,1751312976479,-465.79,0.00019346,2]
[368703676,1751312976500,-173.08,0.00019346,2]
[368703677,1751312976522,-460.0,0.00019346,2]
[368703678,1751312976543,-217.24,0.00019346,2]
[368703679,1751312976565,-337.59,0.00019346,2]
[368703680,1751312976587,-183.81,0.00019346,2]
[368703681,1751312976608,-460.0,0.00019346,2]
[368703682,1751312976630,-460.0,0.00019346,2]
[368703683,1751312976653,-526.87790191,0.00019346,2]
[368703684,1751312976676,-460.0,0.00019347,2]
[368703685,1751312976698,-460.0,0.00019347,2]
[368703686,1751312976721,-460.0,0.00019347,2]
[368703687,1751312976743,-460.0,0.00019347,2]
[368703688,1751312976764,-460.0,0.00019348,2]
[368703689,1751312976784,-460.0,0.00019348,2]
[368703690,1751312976805,-460.0,0.00019348,2]
[368703691,1751312976826,-460.0,0.00019348,2]
[368703692,1751312976846,-261.76518571,0.00019348,2]
[368703693,1751312976867,-460.0,0.00019348,2]
[368703694,1751312976890,-531.64,0.00019348,2]
[368703695,1751312976910,-460.0,0.00019348,2]
[368703696,1751312976931,-236.67794614,0.00019348,2]
[368703697,1751312976955,-261.92,0.00019348,2]
[368703698,1751312976976,-195.71904248,0.00019348,2]
[368703699,1751312977000,-460.0,0.00019348,2]
[368703700,1751312977027,-496.53,0.00019348,2]
[368703701,1751312977050,-588.38,0.00019348,2]
[368703702,1751312977072,-203.45,0.00019348,2]
[368703703,1751312977095,-439.51,0.00019348,2]
[368703704,1751312977116,-170.53395805,0.00019348,2]
[368703705,1751312977139,-460.0,0.00019348,2]
[368703706,1751312977160,-460.0,0.00019348,2]
[368703707,1751312977181,-518.93,0.00019348,2]
[368703708,1751312977205,-460.0,0.00019348,2]
[368703709,1751312977226,-171.18490026,0.00019348,2]
[368703710,1751312977249,-460.0,0.00019348,2]
[368703711,1751312977272,-485.39,0.00019348,2]
[368703712,1751312977296,-196.21,0.00019348,2]
[368703713,1751312977321,-460.0,0.00019348,2]
[368703714,1751312977343,-460.0,0.00019348,2]
[368703715,1751312977366,-460.0,0.00019348,2]
[368703716,1751312977389,-221.2,0.00019348,2]
[368703717,1751312977409,-460.0,0.00019348,2]
[368703718,1751312977430,-500.0,0.00019348,2]
[368703719,1751312977452,-563.65,0.00019349,2]
[368703720,1751312977474,-460.0,0.00019509,2]
[368703721,1751312977495,-460.0,0.00019509,2]
[368703722,1751312977516,-460.0,0.00019509,2]
[368703723,1751312977536,-460.0,0.00019509,2]
[368703724,1751312977556,-460.0,0.00019509,2]
[368703725,1751312977577,-518.94,0.00019509,2]
[368703726,1751312977597,-460.0,0.00019509,2]
[368703727,1751312977616,-460.0,0.00019509,2]
[368703728,1751312977638,-460.0,0.00019509,2]
[368703729,1751312977659,-460.0,0.00019509,2]
[368703730,1751312977681,-460.0,0.00019509,2]
[368703731,1751312977702,-460.0,0.00019509,2]
[368703732,1751312977723,-500.0,0.00019509,2]
[368703733,1751312977743,-460.0,0.00019509,2]
[368703734,1751312977763,-460.0,0.00019509,2]
[368703735,1751312977783,-460.0,0.00019509,2]
[368703736,1751312977803,-460.0,0.00019509,2]
[368703737,1751312977825,-80.29796074,0.00019509,2]
[368703738,1751312978114,-379.70203926,0.00019509,2]
[368703739,1751312978137,-460.0,0.00019509,2]
[368703740,1751312978157,-460.0,0.00019509,2]
[368703741,1751312978177,-177.49948729,0.00019522,2]
[368703742,1751312978199,-460.0,0.00019619,2]
[368703743,1751312978224,-460.0,0.00019619,2]
[368703744,1751312978248,-460.0,0.00019619,2]
[368703745,1751312978271,-460.0,0.00019619,2]
[368703746,1751312978297,-156.49,0.00019619,2]
[368703747,1751312978319,-580.16,0.00019619,2]
[368703748,1751312978340,-460.0,0.00019619,2]
[368703749,1751312978361,-159.09,0.0001962,2]
[368703750,1751312978382,-460.0,0.0001962,2]
[368703751,1751312978405,-460.0,0.0001962,2]
[368703752,1751312978426,-460.0,0.0001962,2]
[368703753,1751312978446,-156.73744723,0.0001962,2]
[368703754,1751312978468,-460.0,0.00019621,2]
[368703755,1751312978491,-335.96,0.00019621,2]
[368703756,1751312978514,-460.0,0.00019621,2]
[368703757,1751312978534,-460.0,0.00019621,2]
[368703758,1751312978554,-460.0,0.00019622,2]
[368703759,1751312978574,-460.0,0.00019622,2]
[368703760,1751312978596,-347.71,0.00019622,2]
[368703761,1751312978617,-265.62,0.00019622,2]
[368703762,1751312978642,-460.0,0.00019622,2]
[368703763,1751312982319,331.892518,0.00013699,2]
[368703764,1751312986711,266.06,0.00019072,2]
[368703765,1751312989034,460.0,0.00019072,2]
[368703766,1751313010760,460.0,0.00019071,2]
[368703767,1751313011014,460.0,0.00019345,2]
[368703768,1751313011301,460.0,0.00019619,2]
[368703769,1751313013057,460.0,0.00019071,2]
[368703770,1751313013300,460.0,0.00019345,2]
[368703771,1751313013551,460.0,0.00019619,2]
[368703772,1751313014442,460.0,0.00019073,2]
[368703773,1751313014728,460.0,0.00019347,2]
[368703774,1751313015026,460.0,0.00019621,2]
[368703776,1751313023715,460.0,0.00019071,2]
[368703777,1751313023954,460.0,0.00019345,2]
[368703778,1751313024198,460.0,0.00019619,2]
[368703779,1751313027744,460.0,0.00019072,2]
[368703780,1751313028020,460.0,0.00019346,2]
[368703781,1751313028275,460.0,0.0001962,2]
[368703782,1751313031987,-1019.37,0.000198,2]
[368703783,1751313031997,-1200.0,0.00019892,2]
[368703784,1751313032008,-460.0,0.00019893,2]
[368703785,1751313032018,-460.0,0.00019893,2]
[368703786,1751313032028,-460.0,0.00019893,2]
[368703787,1751313032037,-460.0,0.00019893,2]
[368703788,1751313032046,-240.155,0.00019893,2]
[368703789,1751313032058,-219.845,0.00019893,2]
[368703791,1751313032068,-251.951848,0.00019894,2]
[368703793,1751313032078,-300.0,0.00019894,2]
[368703795,1751313032087,-460.0,0.00019894,2]
[368703796,1751313032097,-460.0,0.00019895,2]
[368703797,1751313032107,-23.723152,0.00019895,2]
[368704008,1751313037991,-436.276848,0.00019895,2]
[368704009,1751313038001,-460.0,0.00019896,2]
[368704010,1751313038012,-490.79,0.00019896,2]
[368704011,1751313038021,-209.52,0.00019896,2]
[368704012,1751313038031,-520.66157984,0.000199,2]
[368704013,1751313038096,-34.89412031,0.000199,2]
[368704014,1751313038106,-555.55569991,0.00020072,2]
[368704015,1751313038115,-153.0,0.00020082,2]
[368704016,1751313038125,-153.0,0.00020082,2]
[368704017,1751313038134,-153.0,0.00020082,2]
[368704018,1751313038144,-151.0,0.00020167,2]
[368704019,1751313038153,-151.0,0.00020167,2]
[368704020,1751313038163,-460.0,0.00020167,2]
[368704021,1751313038173,-151.0,0.00020167,2]
[368704022,1751313038182,-151.0,0.00020167,2]
[368704024,1751313038193,-151.0,0.00020167,2]
[368704026,1751313038202,-151.0,0.00020167,2]
[368704028,1751313038212,-460.0,0.00020167,2]
[368704030,1751313038221,-460.0,0.00020167,2]
[368704032,1751313038231,-460.0,0.00020167,2]
[368704034,1751313038240,-151.0,0.00020168,2]
[368704036,1751313038250,-151.0,0.00020168,2]
[368704038,1751313038259,-151.0,0.00020168,2]
[368704040,1751313038269,-151.0,0.00020168,2]
[368704042,1751313038279,-460.0,0.00020168,2]
[368704044,1751313038293,-509.79,0.00020169,2]
[368704046,1751313038303,-460.0,0.00020169,2]
[368704047,1751313038313,-152.302486,0.0002017,2]
[368704048,1751313038322,-151.0,0.0002017,2]
[368704049,1751313038335,-151.0,0.0002017,2]
[368704050,1751313038344,-331.892518,0.00020187,2]
[368704051,1751313038353,-366.3004382,0.00020192,2]
[368704052,1751313038363,-555.55569991,0.00020245,2]
[368704053,1751313038373,-151.0,0.00020273,2]
[368704054,1751313038382,-151.0,0.00020273,2]
[368704055,1751313038391,-151.0,0.00020273,2]
[368704056,1751313038400,-151.0,0.00020273,2]
[368704057,1751313038410,-151.0,0.00020273,2]
[368704058,1751313038419,-151.0,0.00020273,2]
[368704059,1751313038428,-151.0,0.00020273,2]
[368704060,1751313038438,-151.0,0.00020273,2]
[368704061,1751313038447,-151.0,0.00020273,2]
[368704062,1751313038457,-151.0,0.00020273,2]
[368704063,1751313038466,-151.0,0.00020273,2]
[368704064,1751313038475,-151.0,0.00020273,2]
[368704065,1751313038485,-151.0,0.00020273,2]
[368704066,1751313038494,-151.0,0.00020273,2]
[368704067,1751313038503,-151.0,0.00020273,2]
[368704068,1751313038512,-151.0,0.00020273,2]
[368704069,1751313038522,-151.0,0.00020273,2]
[368704070,1751313038532,-160.0,0.00020314,2]
[368704071,1751313038541,-160.0,0.00020314,2]
[368704072,1751313038553,-214.99848635,0.00020314,2]
[368704073,1751313038562,-213.84631524,0.00020314,2]
[368704074,1751313038571,-230.31346914,0.00020314,2]
[368704075,1751313038580,-847.41730813,0.00020314,2]
[368704076,1751313038589,-160.0,0.00020314,2]
[368704077,1751313038598,-837.16779106,0.00020314,2]
[368704078,1751313038608,-160.0,0.00020314,2]
[368704079,1751313038619,-42.00802873,0.00020314,2]
[368704080,1751313038631,-117.99197127,0.00020314,2]
[368704081,1751313038640,-555.55569991,0.00020417,3]
[368704082,1751313038649,-460.0,0.00020441,2]
[368704083,1751313038659,-460.0,0.00020441,2]
[368704084,1751313038669,-460.0,0.00020441,2]
[368704085,1751313038678,-460.0,0.00020442,2]
[368704086,1751313038688,-530.5,0.00020443,2]
[368704087,1751313038697,-151.0,0.00020445,2]
[368704088,1751313038707,-14.54383857,0.00020445,2]
[368704089,1751313039529,460.0,0.00019073,2]
[368704090,1751313040329,-136.45616143,0.00020445,2]
[368704091,1751313040339,-172.738,0.00020479,2]
[368704092,1751313040348,-500.0,0.00020547,14]
[368704093,1751313040358,-555.55569991,0.0002059,3]
[368704094,1751313040367,-571.84,0.00020708,3]
[368704095,1751313040377,-460.0,0.00020715,2]
[368704096,1751313040386,-460.0,0.00020715,2]
[368704097,1751313040395,-460.0,0.00020715,2]
[368704098,1751313040405,-460.0,0.00020716,2]
[368704099,1751313040415,-151.0,0.00020722,2]
[368704100,1751313040424,-648.719844,0.00020722,2]
[368704101,1751313040434,-648.719844,0.00020722,2]
[368704102,1751313040445,-555.55569991,0.00020762,3]
[368704103,1751313040455,-330.0,0.00020764,2]
[368704104,1751313040464,-330.0,0.00020792,2]
[368704105,1751313040473,-2506.12676627,0.00020794,2]
[368704106,1751313040483,-415.47792141,0.00020802,2]
[368704107,1751313040492,-500.0,0.00020802,2]
[368704108,1751313040502,-500.0,0.00020802,2]
[368704109,1751313040511,-371.80606307,0.00020802,2]
[368704110,1751313040523,-58.72058673,0.00020802,2]
[368704111,1751313040533,-472.96471581,0.00020803,2]
[368704112,1751313040542,-460.0,0.00020803,2]
[368704113,1751313040552,-151.0,0.00020803,2]
[368704114,1751313040561,-460.0,0.00020803,2]
[368704115,1751313040570,-354.7304789,0.00020877,2]
[368704116,1751313040580,-153.0,0.00020877,2]
[368704117,1751313040590,-159.1138685,0.00020877,2]
[368704118,1751313040599,-1150.4354404,0.00020877,2]
[368704119,1751313040608,-306.0,0.00020877,2]
[368704120,1751313040617,-151.0,0.0002088,2]
[368704121,1751313040627,-151.0,0.0002088,2]
[368704122,1751313040636,-151.0,0.0002089,2]
[368704123,1751313040645,-151.0,0.0002089,2]
[368704124,1751313040654,-151.0,0.0002089,2]
[368704125,1751313040663,-151.0,0.0002089,2]
[368704126,1751313040673,-151.0,0.0002089,2]
[368704127,1751313040682,-151.0,0.0002089,2]
[368704128,1751313040691,-151.0,0.0002089,2]
[368704129,1751313040700,-151.0,0.0002089,2]
[368704130,1751313040709,-330.0,0.00020912,2]
[368704131,1751313040719,-575.2177202,0.00020933,2]
[368704132,1751313040728,-355.0208042,0.00020933,2]
[368704133,1751313040737,-159.266168,0.00020933,2]
[368704134,1751313040746,-154.3521965,0.00020933,2]
[368704135,1751313040757,-555.55569991,0.00020934,4]
[368704136,1751313040766,-460.0,0.00020989,2]
[368704137,1751313040775,-460.0,0.00020989,2]
[368704138,1751313040785,-460.0,0.00020989,2]
[368704139,1751313040794,-460.0,0.0002099,2]
[368704140,1751313040804,-151.0,0.00020997,2]
[368704141,1751313040813,-151.0,0.00020997,2]
[368704142,1751313040823,-151.0,0.00020997,2]
[368704143,1751313040832,-151.0,0.00020997,2]
[368704144,1751313040842,-151.0,0.00020998,2]
[368704145,1751313040851,-151.0,0.00020999,2]
[368704146,1751313040860,-151.0,0.00020999,2]
[368704148,1751313040870,-151.0,0.00020999,2]
[368704150,1751313040879,-29431.85508365,0.00021,7]
[368704152,1751313040889,-151.0,0.00021,2]
[368704153,1751313040898,-151.0,0.00021,2]
[368704154,1751313040907,-151.0,0.00021,2]
[368704155,1751313040916,-151.0,0.00021,2]
[368704156,1751313040926,-151.0,0.00021,2]
[368704157,1751313040935,-151.0,0.00021,2]
[368704158,1751313040945,-847.41730813,0.00021,7]
[368704159,1751313040955,-151.0,0.00021,2]
[368704160,1751313040965,-151.0,0.00021,2]
[368704161,1751313040975,-213.84631524,0.00021,7]
[368704163,1751313040985,-151.0,0.00021,2]
[368704165,1751313040994,-151.0,0.00021,2]
[368704166,1751313041003,-151.0,0.00021,2]
[368704167,1751313041012,-151.0,0.00021,2]
[368704168,1751313041021,-151.0,0.00021,2]
[368704169,1751313041031,-151.0,0.00021,2]
[368704171,1751313041041,-239.64445,0.00021,2]
[368704172,1751313041050,-151.0,0.00021,2]
[368704173,1751313041059,-151.0,0.00021,2]
[368704174,1751313041068,-151.0,0.00021,2]
[368704175,1751313041077,-151.0,0.00021,2]
[368704176,1751313041087,-151.0,0.00021,2]
[368704178,1751313041096,-648.719844,0.00021,2]
[368704179,1751313041106,-648.719844,0.00021,2]
[368704180,1751313041115,-330.0,0.00021012,2]
[368704181,1751313041124,-330.0,0.00021018,2]
[368704182,1751313041134,-7595.77876626,0.00021022,2]
[368704183,1751313041143,-283.403764,0.00021022,2]
[368704184,1751313041158,-151.0,0.00021022,2]
[368704185,1751313041167,-151.0,0.00021022,2]
[368704186,1751313041177,-151.0,0.00021022,2]
[368704187,1751313041187,-330.0,0.00021056,2]
[368704188,1751313041196,-460.0,0.00021077,2]
[368704189,1751313041206,-1492.88,0.000211,2]
[368704190,1751313041215,-555.55569991,0.00021107,4]
[368704191,1751313041224,-330.0,0.00021116,2]
[368704192,1751313041234,-330.0,0.0002119,2]
[368704193,1751313041243,-500.0,0.00021205,2]
[368704194,1751313041253,-151.0,0.00021205,2]
[368704195,1751313041263,-460.0,0.00021263,2]
[368704196,1751313041273,-460.0,0.00021263,2]
[368704197,1751313041284,-592.52414584,0.00021263,2]
[368704198,1751313041295,-418.93978985,0.00021264,2]
[368704199,1751313041304,-555.55569991,0.00021279,5]
[368704200,1751313041314,-151.0,0.0002132,2]
[368704201,1751313041323,-151.0,0.0002132,2]
[368704202,1751313041334,-151.0,0.0002132,2]
[368704203,1751313041345,-151.0,0.0002132,2]
[368704204,1751313041354,-151.0,0.0002132,2]
[368704205,1751313041364,-220.88006,0.00021321,2]
[368704206,1751313041374,-151.0,0.00021321,2]
[368704207,1751313041521,-270.96292,0.00021321,2]
[368704208,1751313041539,-151.0,0.00021321,2]
[368704209,1751313041549,-229.354144,0.00021321,2]
[368704210,1751313041558,-330.0,0.00021321,2]
[368704211,1751313041567,-330.0,0.00021337,2]
[368704212,1751313041577,-151.0,0.0002135,2]
[368704213,1751313041586,-151.0,0.0002135,2]
[368704214,1751313041596,-151.0,0.0002135,2]
[368704215,1751313041605,-151.0,0.0002135,2]
[368704216,1751313041614,-151.0,0.0002135,2]
[368704217,1751313041623,-151.0,0.0002135,2]
[368704218,1751313041633,-460.0,0.00021351,2]
[368704219,1751313041644,-330.0,0.00021358,2]
[368704220,1751313041654,-238.0,0.00021362,2]
[368704221,1751313041663,-238.0,0.00021405,2]
[368704222,1751313041672,-151.0,0.00021405,2]
[368704223,1751313041681,-151.0,0.00021405,2]
[368704224,1751313041691,-151.0,0.00021405,2]
[368704225,1751313041703,-151.0,0.00021405,2]
[368704226,1751313041711,-555.55569991,0.00021452,5]
[368704227,1751313041721,-151.0,0.00021452,2]
[368704228,1751313041730,-1020.736732,0.00021452,4]
[368704229,1751313041742,-330.0,0.00021452,2]
[368704230,1751313041752,-330.0,0.00021482,2]
[368704231,1751313041761,-330.0,0.00021483,2]
[368704232,1751313041771,-238.0,0.00021495,2]
[368704233,1751313041781,-151.0,0.00021537,2]
[368704234,1751313041791,-260.234027,0.00021537,2]
[368704235,1751313041802,-236.96,0.00021537,2]
[368704236,1751313041811,-151.0,0.00021537,2]
[368704237,1751313041820,-151.0,0.00021537,2]
[368704238,1751313041830,-460.0,0.00021537,2]
[368704239,1751313041839,-238.0,0.0002158,2]
[368704240,1751313041849,-151.0,0.000216,3]
[368704241,1751313041858,-151.0,0.000216,2]
[368704242,1751313041867,-151.0,0.000216,2]
[368704243,1751313041876,-207.4,0.0002162,2]
[368704244,1751313041885,-555.55569991,0.00021624,5]
[368704245,1751313041893,-460.0,0.00021625,2]
[368704246,1751313041903,-151.0,0.00021625,2]
[368704247,1751313041912,-648.719844,0.00021625,2]
[368704248,1751313041922,-648.719844,0.00021625,2]
[368704249,1751313041932,-238.0,0.00021628,2]
[368704250,1751313041942,-420.0,0.00021665,2]
[368704251,1751313041953,-151.0,0.000217,3]
[368704252,1751313041963,-238.0,0.00021774,2]
[368704253,1751313041972,-555.55569991,0.00021797,6]
[368704254,1751313041982,-2099.8,0.000218,2]
[368704255,1751313041991,-151.0,0.000218,3]
[368704256,1751313042001,-460.0,0.00021811,2]
[368704257,1751313042011,-238.0,0.00021833,2]
[368704258,1751313042020,-31948.42948466,0.0002186,2]
[368704283,1751313043304,-1210.91323182,0.0002186,2]
[368704284,1751313043340,-5998.17081118,0.0002186,2]
[368704285,1751313043350,-395.90687053,0.00021899,2]
[368704287,1751313043674,-64.09312947,0.00021899,2]
[368704288,1751313043684,-151.0,0.000219,4]
[368704289,1751313043693,-290.54356667,0.000219,2]
[368704290,1751313043705,-5603.96887458,0.000219,2]
[368704291,1751313043718,-761.60007,0.000219,2]
[368704294,1751313046348,-316.76628762,0.000219,2]
[368704307,1751313053960,563.69497321,0.00019071,2]
[368704310,1751313062202,460.0,0.00019073,2]
[368704311,1751313062444,460.0,0.00019347,2]
[368704312,1751313062680,460.0,0.00019621,2]
[368704314,1751313142041,460.0,0.00019071,2]
[368704315,1751313147535,460.0,0.00019071,2]
[368704336,1751314028101,-1200.0,0.00019068,2]
[368704337,1751314028122,-300.0,0.00019069,2]
[368704338,1751314028142,-300.0,0.00019069,2]
[368704339,1751314028162,-300.0,0.00019069,2]
[368704340,1751314028182,-460.0,0.0001907,2]
[368704341,1751314028202,-460.0,0.0001907,2]
[368704342,1751314028222,-460.0,0.0001907,2]
[368704343,1751314028245,-500.0,0.0001907,2]
[368704344,1751314028265,-460.0,0.0001907,2]
[368704345,1751314028285,-569.1,0.0001907,2]
[368704346,1751314028306,-460.0,0.0001907,2]
[368704347,1751314028327,-460.7339748,0.0001907,2]
[368704348,1751314028351,-460.0,0.0001907,2]
[368704349,1751314028373,-460.0,0.00019071,2]
[368704350,1751314028396,-460.0,0.00019072,2]
[368704351,1751314028419,-24900.0,0.00019198,2]
[368704352,1751314028441,-460.0,0.00019344,2]
[368704353,1751314028464,-460.0,0.00019345,2]
[368704354,1751314028486,-382.35,0.00019346,2]
[368704355,1751314028508,-460.0,0.00019619,2]
[368704356,1751314028529,-8622.9794596,0.00019865,2]
[368704357,1751314028551,-460.0,0.00019893,2]
[368704358,1751314028578,-368.03470946,0.000199,2]
[368704359,1751314028604,-460.0,0.00019999,2]
[368704360,1751314028631,-409.37039908,0.00019999,2]
[368704361,1751314028655,-460.0,0.00019999,2]
[368704362,1751314028678,-460.0,0.00019999,2]
[368704363,1751314028702,-177.8,0.00019999,2]
[368704364,1751314028724,-4422.45433397,0.0002,7]
[368704365,1751314028750,-368.03470941,0.00020072,2]
[368704366,1751314028772,-460.0,0.00020167,2]
[368704367,1751314028798,-368.03470941,0.00020245,2]
[368704368,1751314028820,-460.0,0.00020273,2]
[368704369,1751314028844,-207.4,0.00020398,2]
[368704370,1751314028872,-368.03470941,0.00020417,3]
[368704371,1751314028896,-160.0,0.0002043,2]
[368704372,1751314028920,-460.0,0.00020441,2]
[368704373,1751314028942,-213.84631524,0.00020442,2]
[368704374,1751314028964,-837.16779106,0.00020442,2]
[368704375,1751314028985,-230.31346914,0.00020442,2]
[368704376,1751314029007,-160.0,0.00020442,2]
[368704377,1751314029027,-847.41730813,0.00020442,2]
[368704378,1751314029048,-160.0,0.00020442,2]
[368704379,1751314029069,-214.99848635,0.00020442,2]
[368704380,1751314029092,-460.0,0.00020547,2]
[368704381,1751314029119,-368.03470941,0.0002059,3]
[368704382,1751314029140,-460.0,0.00020715,2]
[368704383,1751314029166,-368.03470941,0.00020762,3]
[368704384,1751314029186,-172.73873664,0.00020762,2]
[368704385,1751314029207,-4.07086232,0.00020784,2]
[368704386,1751314037092,-438.5704937,0.00019999,2]
[368704387,1751314041127,-21.4295063,0.00019999,2]
[368704388,1751314041150,-460.0,0.00019999,2]
[368704389,1751314041174,-460.0,0.00020273,2]
[368704390,1751314041198,-513.54,0.00020273,2]
[368704391,1751314041221,-415.92913768,0.00020784,2]
[368704392,1751314041249,-460.0,0.00020821,2]
[368704393,1751314041275,-175.15885559,0.00020835,2]
[368704394,1751314041302,-368.03470941,0.00020934,4]
[368704395,1751314041326,-460.0,0.00020989,2]
[368704396,1751314041350,-316.8,0.00021095,2]